bitfinex/quotes_BTCUSD_20250418
["timestamp","ask_amount","ask_price","bid_price","bid_amount"]
[1745005598758,0.24869865,84440.0,84437.0,0.18948935]
[1745005600012,0.24869865,84440.0,84438.0,0.18948774]
[1745005600409,0.24869802,84440.0,84437.0,0.18949038]
[1745005603512,0.24869802,84440.0,84438.0,0.18948733]
[1745005604410,0.23685963,84439.0,84436.0,0.20133541]
[1745005604937,0.23686298,84437.0,84435.0,0.35184342]
[1745005605142,0.011843,84438.0,84436.0,0.18949263]
[1745005605509,0.24870409,84438.0,84436.0,0.18949263]
[1745005609226,0.24869802,84440.0,84436.0,0.18949263]
[1745005609993,0.24869802,84440.0,84437.0,0.1894895]
[1745005611863,0.23685756,84439.0,84437.0,0.1894895]
[1745005614278,0.23686018,84438.0,84436.0,0.18949263]
[1745005614778,0.23686298,84437.0,84435.0,0.34]
[1745005614980,0.24870396,84438.0,84435.0,0.52949465]
[1745005615485,0.23686579,84436.0,84435.0,0.34]
[1745005615640,0.24870396,84438.0,84435.0,0.52949341]
[1745005616487,0.24870396,84438.0,84431.0,0.02009578]
[1745005616488,0.23687701,84432.0,84431.0,0.36009578]
[1745005616702,0.2368742,84433.0,84431.0,0.34]
[1745005617482,0.24871516,84434.0,84431.0,0.52950326]
[1745005618226,0.24871516,84434.0,84431.0,0.54541345]
[1745005618417,0.24871516,84434.0,84433.0,0.34]
[1745005623041,0.24871516,84434.0,84432.0,0.34]
[1745005623395,0.24871516,84434.0,84432.0,0.52950033]
[1745005624211,0.24871516,84434.0,84432.0,0.34]
[1745005624532,0.2368742,84433.0,84432.0,0.34]
[1745005625719,0.23687701,84432.0,84431.0,0.01591019]
[1745005626053,0.23687701,84432.0,84430.0,0.35184413]
[1745005626054,0.23687701,84432.0,84430.0,0.54134999]
[1745005629366,0.23687716,84432.0,84429.0,0.0184976]
[1745005629588,0.01184371,84433.0,84430.0,0.35503955]
[1745005629763,0.24871694,84434.0,84430.0,0.34]
[1745005629972,0.24871259,84435.0,84430.0,0.54135003]
[1745005630302,0.24871259,84435.0,84431.0,0.01184399]
[1745005630509,0.24871259,84435.0,84432.0,0.18949958]
[1745005631684,0.24871556,84434.0,84431.0,0.18949958]
[1745005632387,0.24871556,84434.0,84432.0,0.34]
[1745005632957,0.2368742,84433.0,84432.0,0.34]
[1745005633292,0.2368742,84433.0,84430.0,0.36703473]
[1745005633501,0.2368742,84433.0,84430.0,0.35184413]
[1745005633502,0.24871791,84433.0,84430.0,0.35184413]
[1745005633704,0.24871791,84433.0,84430.0,0.34]
[1745005633705,0.23687976,84432.0,84430.0,0.34]
[1745005633907,0.23688262,84430.0,84429.0,0.0184976]
[1745005636882,0.23688262,84430.0,84429.0,0.03393105]
[1745005641419,0.35633053,84430.0,84429.0,0.03393105]
[1745005641575,0.40133053,84430.0,84429.0,0.03393105]
[1745005648208,0.2369191,84417.0,84416.0,0.34]
[1745005648330,0.23693313,84412.0,84411.0,0.34]
[1745005648877,0.23693313,84412.0,84411.0,0.3585025]
[1745005649305,0.23693313,84412.0,84411.0,0.37403655]
[1745005649609,0.23693313,84412.0,84411.0,0.03403655]
[1745005649810,0.23693313,84412.0,84411.0,0.03408163]
[1745005651399,0.35638104,84412.0,84411.0,0.03408163]
[1745005652592,0.35638104,84412.0,84411.0,0.01854758]
[1745005656882,0.40318104,84412.0,84411.0,0.01854758]
[1745005659949,0.35638104,84412.0,84411.0,0.01854758]
[1745005660623,0.23696401,84401.0,84400.0,0.10168246]
[1745005660820,0.23696401,84401.0,84400.0,0.35500255]
[1745005665444,0.24880692,84403.0,84401.0,0.34]
[1745005665661,0.24880692,84403.0,84401.0,0.52957114]
[1745005665853,0.24880692,84403.0,84402.0,0.0475]
[1745005669012,0.24880336,84404.0,84402.0,0.0475]
[1745005669273,0.24878782,84410.0,84404.0,0.01184777]
[1745005669504,0.23693313,84412.0,84411.0,0.0457]
[1745005671015,0.23694398,84409.0,84407.0,0.34]
[1745005671443,0.23694398,84409.0,84407.0,0.341]
[1745005671770,0.23694436,84408.0,84407.0,0.001]
[1745005681738,0.23694436,84408.0,84400.0,0.01500255]
[1745005681739,0.23696401,84401.0,84400.0,0.01500255]
[1745005693963,0.35641192,84401.0,84400.0,0.01500255]
[1745005709315,0.23696401,84401.0,84400.0,0.01500255]
[1745005713589,0.24880436,84404.0,84400.0,0.01500255]
[1745005713975,0.40175902,84422.0,84400.0,0.01500255]
[1745005713976,0.24878203,84412.0,84409.0,0.34]
[1745005714207,0.23693442,84412.0,84409.0,0.18955128]
[1745005714367,0.23693429,84412.0,84409.0,0.20140018]
[1745005714549,0.24877684,84413.0,84411.0,0.34]
[1745005715470,0.24877684,84413.0,84411.0,0.52954827]
[1745005717958,0.2369276,84414.0,84411.0,0.52954827]
[1745005718582,0.2369276,84414.0,84413.0,0.34]
[1745005719319,0.24877344,84415.0,84413.0,0.34]
[1745005719457,0.24877344,84415.0,84413.0,0.52954411]
[1745005722350,0.24877344,84415.0,84413.0,0.18954411]
[1745005723426,0.01184623,84415.0,84413.0,0.18954411]
[1745005723997,0.24877275,84415.0,84412.0,0.1895465]
[1745005724712,0.01184623,84415.0,84412.0,0.1895465]
[1745005724912,0.24877212,84415.0,84412.0,0.1895465]
[1745005725113,0.24877212,84415.0,84413.0,0.18954381]
[1745005726370,0.24876834,84416.0,84414.0,0.18954201]
[1745005726511,0.24876834,84416.0,84413.0,0.18954381]
[1745005726724,0.23692486,84415.0,84413.0,0.18954381]
[1745005726902,0.24877389,84414.0,84411.0,0.20139506]
[1745005727132,0.24877389,84414.0,84411.0,0.18954827]
[1745005727480,0.24877389,84414.0,84412.0,0.18954599]
[1745005727845,0.01184637,84414.0,84412.0,0.18954562]
[1745005728869,0.2487745,84414.0,84412.0,0.18954562]
[1745005729233,0.2487745,84414.0,84411.0,0.18954827]
[1745005729606,0.23693142,84413.0,84411.0,0.18954827]
[1745005731408,0.23693415,84412.0,84410.0,0.01184693]
[1745005732380,0.24877793,84413.0,84410.0,0.20139775]
[1745005734600,0.23693594,84411.0,84409.0,0.2013984]
[1745005734795,0.01184665,84412.0,84410.0,0.1895492]
[1745005735001,0.2487773,84413.0,84410.0,0.1895492]
[1745005737087,0.2487773,84413.0,84409.0,0.20140012]
[1745005737961,0.23693545,84412.0,84409.0,0.20140012]
[1745005738164,0.23693695,84411.0,84409.0,0.20140012]
[1745005738524,0.23693875,84410.0,84406.0,0.20140597]
[1745005738843,0.23693875,84410.0,84407.0,0.18955581]
[1745005739443,0.24878568,84410.0,84408.0,0.18955536]
[1745005740171,0.23694155,84409.0,84406.0,0.20140719]
[1745005740559,0.23694155,84409.0,84407.0,0.18955628]
[1745005740957,0.24878598,84410.0,84408.0,0.18955549]
[1745005740958,0.01184693,84410.0,84408.0,0.18955549]
[1745005742085,0.24878617,84410.0,84408.0,0.18955549]
[1745005742655,0.24878617,84410.0,84407.0,0.20140363]
[1745005743495,0.24878617,84410.0,84408.0,0.18955507]
[1745005743906,0.24878295,84411.0,84409.0,0.18955324]
[1745005744052,0.24878295,84411.0,84408.0,0.20140228]
[1745005745720,0.23694013,84410.0,84408.0,0.20140228]
[1745005747983,0.24878348,84411.0,84408.0,0.20140228]
[1745005748205,0.24878568,84410.0,84408.0,0.52955549]
[1745005749860,0.23693875,84410.0,84408.0,0.52955549]
[1745005749988,0.01184679,84411.0,84409.0,0.18955324]
[1745005750692,0.24878328,84411.0,84408.0,0.5414027]
[1745005751045,0.01184665,84412.0,84409.0,0.20139934]
[1745005751373,0.24878047,84412.0,84410.0,0.189551]
[1745005752457,0.24878047,84412.0,84409.0,0.20139934]
[1745005752652,0.23693713,84411.0,84408.0,0.54140229]
[1745005752937,0.24878392,84411.0,84408.0,0.54140229]
[1745005753135,0.23693875,84410.0,84408.0,0.35184721]
[1745005755551,0.23693875,84410.0,84408.0,0.54140265]
[1745005757451,0.23694935,84407.0,84405.0,0.34]
[1745005759084,0.23694935,84407.0,84405.0,0.52956173]
[1745005759708,0.23694935,84407.0,84405.0,0.34]
[1745005760938,0.23694935,84407.0,84405.0,0.52956182]
[1745005762207,0.23694935,84407.0,84405.0,0.34]
[1745005763271,0.23694935,84407.0,84405.0,0.52956204]
[1745005763477,0.23694997,84406.0,84405.0,0.34]
[1745005767942,0.23694997,84406.0,84404.0,0.01184777]
[1745005768587,0.23695278,84405.0,84403.0,0.54141391]
[1745005773850,0.23695278,84405.0,84403.0,0.34]
[1745005775325,0.23696401,84401.0,84399.0,0.0004211]
[1745005793773,0.21696401,84401.0,84399.0,0.0004211]
[1745005793985,0.33641192,84401.0,84399.0,0.0004211]
[1745005806726,0.21696401,84401.0,84399.0,0.0004211]
[1745005849834,0.23698083,84396.0,84382.0,0.34]
[1745005850048,0.23698347,84395.0,84393.0,0.01189436]
[1745005851692,0.23698347,84395.0,84393.0,0.01687319]
[1745005854694,0.24882973,84396.0,84393.0,0.20646198]
[1745005855034,0.2369813,84395.0,84393.0,0.20646198]
[1745005855234,0.2369813,84395.0,84393.0,0.01687319]
[1745005857453,0.23698367,84394.0,84393.0,0.01687319]
[1745005857659,0.2369813,84395.0,84393.0,0.01687319]
[1745005866088,0.23698154,84395.0,84393.0,0.20646171]
[1745005867395,0.23698154,84395.0,84393.0,0.01687319]
[1745005867990,0.24883256,84396.0,84393.0,0.20646051]
[1745005868653,0.23698288,84395.0,84393.0,0.20646218]
[1745005869052,0.24883256,84396.0,84393.0,0.20646218]
[1745005870163,0.23698187,84395.0,84393.0,0.20646218]
[1745005871685,0.23698187,84395.0,84391.0,0.0158496]
[1745005871881,0.23698187,84395.0,84392.0,0.20155474]
[1745005872098,0.23698187,84395.0,84393.0,0.18958899]
[1745005872813,0.23698187,84395.0,84393.0,0.205101]
[1745005873596,0.23698187,84395.0,84393.0,0.01551201]
[1745005873841,0.0118489,84396.0,84393.0,0.18958752]
[1745005874019,0.24882906,84396.0,84393.0,0.18958752]
[1745005874547,0.24882906,84396.0,84392.0,0.20155821]
[1745005874748,0.24882906,84396.0,84393.0,0.01557731]
[1745005874952,0.24882906,84396.0,84392.0,0.20155821]
[1745005875274,0.24882906,84396.0,84393.0,0.18958848]
[1745005875406,0.24881569,84400.0,84394.0,0.01184918]
[1745005875610,0.23697272,84398.0,84396.0,0.0118489]
[1745005875974,0.01184792,84403.0,84393.0,0.2014378]
[1745005875975,0.23694763,84407.0,84404.0,0.20141032]
[1745005876109,0.01184721,84408.0,84398.0,0.3861]
[1745005876298,0.01184763,84405.0,84400.0,0.18957137]
[1745005876718,0.24880298,84405.0,84402.0,0.18956867]
[1745005876926,0.01184763,84405.0,84402.0,0.20141673]
[1745005877328,0.24880047,84405.0,84402.0,0.20141673]
[1745005879162,0.24879781,84406.0,84403.0,0.18956555]
[1745005880377,0.01184763,84405.0,84402.0,0.18956867]
[1745005880582,0.24880154,84405.0,84402.0,0.18956867]
[1745005884217,0.2369556,84404.0,84402.0,0.18956867]
[1745005885614,0.24880632,84403.0,84400.0,0.34]
[1745005885813,0.01184792,84403.0,84401.0,0.18957121]
[1745005886538,0.24880337,84404.0,84401.0,0.18957121]
[1745005887319,0.24880337,84404.0,84402.0,0.18956852]
[1745005888381,0.01184777,84404.0,84402.0,0.18956852]
[1745005888878,0.24880423,84404.0,84402.0,0.18956852]
[1745005894053,0.24880105,84405.0,84402.0,0.18956836]
[1745005894710,0.23695614,84404.0,84402.0,0.18956836]
[1745005895212,0.24880391,84404.0,84401.0,0.20141941]
[1745005897016,0.24880391,84404.0,84402.0,0.18956819]
[1745005903126,0.24880391,84404.0,84402.0,0.34]
[1745005904283,0.01184777,84404.0,84402.0,0.34]
[1745005905432,0.01184777,84404.0,84402.0,0.52956774]
[1745005906824,0.2488005,84405.0,84404.0,0.34]
[1745005907819,0.01184749,84406.0,84404.0,0.52956447]
[1745005907969,0.23695278,84405.0,84404.0,0.34]
[1745005909236,0.24879969,84406.0,84404.0,0.34]
[1745005909434,0.24879969,84406.0,84404.0,0.52956428]
[1745005917843,0.01184749,84406.0,84404.0,0.52956428]
[1745005920444,0.24879859,84406.0,84404.0,0.34]
[1745005920665,0.24879859,84406.0,84404.0,0.52956394]
[1745005921417,0.24879859,84406.0,84404.0,0.34]
[1745005922186,0.01184749,84406.0,84404.0,0.34]
[1745005922385,0.24879473,84407.0,84404.0,0.52956323]
[1745005922386,0.01184735,84407.0,84404.0,0.52956323]
[1745005922685,0.24879186,84408.0,84404.0,0.52956323]
[1745005924379,0.24879186,84408.0,84404.0,0.18956323]
[1745005924787,0.01184749,84406.0,84403.0,0.18956284]
[1745005925740,0.23694889,84407.0,84404.0,0.18956323]
[1745005926111,0.24879186,84408.0,84404.0,0.18956323]
[1745005926914,0.24879186,84408.0,84405.0,0.18956081]
[1745005928544,0.01184721,84408.0,84406.0,0.18955948]
[1745005930145,0.24879181,84408.0,84405.0,0.18956081]
[1745005930455,0.24879181,84408.0,84406.0,0.18955995]
[1745005930862,0.24879181,84408.0,84405.0,0.18956081]
[1745005931152,0.24879181,84408.0,84406.0,0.1895598]
[1745005932059,0.01184735,84407.0,84402.0,0.35184806]
[1745005932356,0.01184735,84407.0,84405.0,0.18956181]
[1745005932790,0.24879181,84408.0,84404.0,0.20141041]
[1745005933889,0.24879181,84408.0,84404.0,0.18956264]
[1745005934088,0.24879181,84408.0,84405.0,0.18956181]
[1745005934271,0.24879181,84408.0,84404.0,0.18956264]
[1745005934592,0.24879452,84407.0,84404.0,0.18956433]
[1745005937015,0.24879452,84407.0,84403.0,0.16022933]
[1745005937457,0.23696401,84401.0,84400.0,0.02]
[1745005999530,0.35641192,84401.0,84400.0,0.02]
[1745006000637,0.35741192,84401.0,84400.0,0.02]
[1745006012153,0.23796401,84401.0,84400.0,0.02]
[1745006031247,0.23696401,84401.0,84400.0,0.02]
[1745006055392,0.23697805,84396.0,84394.0,0.18958636]
[1745006056290,0.23697805,84396.0,84394.0,0.19058636]
[1745006059788,0.23698086,84395.0,84394.0,0.001]
[1745006062069,0.23697805,84396.0,84394.0,0.001]
[1745006062287,0.23698086,84395.0,84394.0,0.001]
[1745006064729,0.23697805,84396.0,84394.0,0.001]
[1745006065934,0.23698086,84395.0,84394.0,0.001]
[1745006068152,0.23697805,84396.0,84394.0,0.001]
[1745006068372,0.23698086,84395.0,84394.0,0.001]
[1745006085420,0.01184876,84397.0,84394.0,0.001]
[1745006085620,0.23697913,84396.0,84394.0,0.001]
[1745006086639,0.24881721,84400.0,84394.0,0.01284918]
[1745006086839,0.24881721,84400.0,84397.0,0.18957965]
[1745006087039,0.24882106,84398.0,84395.0,0.18958469]
[1745006087487,0.2369753,84397.0,84395.0,0.18958469]
[1745006087690,0.24881185,84402.0,84398.0,0.18957674]
[1745006087849,0.2488133,84401.0,84399.0,0.18957382]
[1745006088032,0.01184806,84402.0,84399.0,0.18957506]
[1745006088439,0.24879437,84408.0,84400.0,0.18957316]
[1745006088666,0.01184792,84403.0,84400.0,0.18957316]
[1745006088865,0.24880689,84403.0,84400.0,0.18957316]
[1745006091553,0.24881011,84402.0,84399.0,0.18957125]
[1745006096469,0.01184806,84402.0,84399.0,0.18957125]
[1745006096630,0.24881012,84402.0,84399.0,0.18957125]
[1745006097263,0.24881401,84401.0,84398.0,0.18957413]
[1745006097792,0.24881401,84401.0,84399.0,0.18957561]
[1745006102260,0.24881401,84401.0,84398.0,0.18957729]
[1745006102608,0.24881544,84400.0,84397.0,0.18957828]
[1745006102895,0.01184806,84402.0,84398.0,0.18957795]
[1745006103105,0.24881134,84402.0,84399.0,0.18957413]
[1745006103317,0.23696457,84401.0,84399.0,0.18957413]
[1745006103670,0.24881277,84401.0,84398.0,0.18957795]
[1745006105155,0.24881277,84401.0,84399.0,0.18957434]
[1745006105156,0.0118482,84401.0,84399.0,0.18957434]
[1745006105605,0.24881409,84401.0,84399.0,0.18957568]
[1745006107146,0.23696859,84400.0,84398.0,0.189574]
[1745006109928,0.23696694,84400.0,84398.0,0.189574]
[1745006117725,0.24881409,84401.0,84398.0,0.189574]
[1745006117954,0.24881409,84401.0,84399.0,0.18957521]
[1745006118235,0.24881277,84401.0,84399.0,0.18957521]
[1745006119240,0.23696882,84400.0,84398.0,0.189574]
[1745006120023,0.24881301,84401.0,84398.0,0.189574]
[1745006122610,0.2369677,84400.0,84398.0,0.189574]
[1745006125242,0.24881301,84401.0,84398.0,0.189574]
[1745006126170,0.24881797,84400.0,84394.0,0.18958292]
[1745006126373,0.23698305,84395.0,84393.0,0.31302318]
[1745006126885,0.23698305,84395.0,84393.0,0.01569676]
[1745006127090,0.24883209,84395.0,84392.0,0.18970746]
[1745006129269,0.23698437,84394.0,84392.0,0.20532431]
[1745006129492,0.23698437,84394.0,84393.0,0.34]
[1745006130293,0.24883209,84395.0,84393.0,0.34]
[1745006130951,0.24383209,84395.0,84393.0,0.33345163]
[1745006131157,0.24203209,84395.0,84393.0,0.33345163]
[1745006131457,0.23303209,84395.0,84393.0,0.33345163]
[1745006131874,0.22853209,84395.0,84393.0,0.33345163]
[1745006133558,0.24882899,84398.0,84395.0,0.529583]
[1745006133752,0.24882899,84398.0,84395.0,0.34]
[1745006133958,0.24882209,84398.0,84395.0,0.52958292]
[1745006134220,0.24882209,84398.0,84395.0,0.34]
[1745006134785,0.01184862,84398.0,84395.0,0.34]
[1745006136080,0.24882127,84398.0,84395.0,0.52958443]
[1745006136285,0.01184862,84398.0,84395.0,0.52958443]
[1745006137316,0.01184806,84402.0,84398.0,0.34]
[1745006137480,0.0118482,84401.0,84398.0,0.52957795]
[1745006137685,0.01184806,84402.0,84400.0,0.34]
[1745006137880,0.01184806,84402.0,84400.0,0.52957345]
[1745006138629,0.01184792,84403.0,84400.0,0.52957345]
[1745006139147,0.24880699,84403.0,84400.0,0.52957345]
[1745006140853,0.01184792,84403.0,84402.0,0.34]
[1745006142170,0.24880632,84403.0,84400.0,0.18957345]
[1745006142347,0.24880632,84403.0,84401.0,0.34]
[1745006142748,0.01184792,84403.0,84401.0,0.34]
[1745006145181,0.24880674,84403.0,84401.0,0.34]
[1745006148823,0.01184792,84403.0,84401.0,0.52957118]
[1745006148964,0.24880355,84404.0,84401.0,0.52957118]
[1745006150395,0.01184777,84404.0,84401.0,0.52957118]
[1745006150599,0.24880141,84405.0,84401.0,0.52957118]
[1745006152881,0.24880141,84405.0,84401.0,0.34]
[1745006153564,0.24880141,84405.0,84401.0,0.55326714]
[1745006153975,0.24880141,84405.0,84398.0,0.01184862]
[1745006153976,0.01184777,84404.0,84398.0,0.34]
[1745006154293,0.01184806,84402.0,84398.0,0.55327518]
[1745006155932,0.0118482,84401.0,84398.0,0.34]
[1745006156145,0.01184834,84400.0,84396.0,0.55327986]
[1745006156311,0.24881247,84401.0,84396.0,0.55327991]
[1745006156899,0.24881448,84402.0,84398.0,0.55327424]
[1745006157437,0.24880693,84403.0,84400.0,0.34]
[1745006159539,0.24880143,84405.0,84400.0,0.55326894]
[1745006159743,0.24880363,84404.0,84400.0,0.55326894]
[1745006163670,0.24880363,84404.0,84402.0,0.34]
[1745006164067,0.23694733,84407.0,84402.0,0.34]
[1745006164068,0.24879787,84406.0,84402.0,0.55326391]
[1745006164245,0.01184679,84411.0,84402.0,0.55326391]
[1745006164246,0.0489,84413.0,84403.0,0.01184792]
[1745006164409,0.01184693,84410.0,84406.0,0.21325311]
[1745006164609,0.01184693,84410.0,84407.0,0.21325113]
[1745006165025,0.24878601,84410.0,84407.0,0.21325113]
[1745006167736,0.01184693,84410.0,84407.0,0.21325113]
[1745006169147,0.01184679,84411.0,84407.0,0.21325113]
[1745006170047,0.24878397,84411.0,84407.0,0.21325113]
[1745006170246,0.24878601,84410.0,84405.0,0.2132575]
[1745006170747,0.01184693,84410.0,84406.0,0.21325472]
[1745006172280,0.24878365,84411.0,84406.0,0.21325472]
[1745006173497,0.24878667,84410.0,84405.0,0.2132575]
[1745006173681,0.24878667,84410.0,84405.0,0.05004283]
[1745006174345,0.24878667,84410.0,84404.0,0.23695092]
[1745006174978,0.24878667,84410.0,84404.0,0.23695489]
[1745006175181,0.23694768,84407.0,84403.0,0.2132618]
[1745006175377,0.24879338,84408.0,84402.0,0.34]
[1745006175582,0.24878827,84410.0,84402.0,0.34]
[1745006175583,0.24878933,84409.0,84405.0,0.23695164]
[1745006176191,0.01184735,84407.0,84404.0,0.23695456]
[1745006176399,0.24879289,84408.0,84404.0,0.23695456]
[1745006176937,0.24878933,84409.0,84405.0,0.23695276]
[1745006178249,0.01184707,84409.0,84405.0,0.23695276]
[1745006178631,0.24878997,84409.0,84405.0,0.23695276]
[1745006181019,0.01184707,84409.0,84405.0,0.23695276]
[1745006182142,0.2487887,84409.0,84405.0,0.23695276]
[1745006184192,0.2487861,84410.0,84405.0,0.23695276]
[1745006184847,0.2487861,84410.0,84406.0,0.23694857]
[1745006187653,0.01184679,84411.0,84406.0,0.23694857]
[1745006188036,0.01184679,84411.0,84407.0,0.23694597]
[1745006188536,0.01184679,84411.0,84408.0,0.23694392]
[1745006188741,0.24878304,84411.0,84407.0,0.23694597]
[1745006190765,0.24878304,84411.0,84408.0,0.23694431]
[1745006191320,0.24878165,84412.0,84408.0,0.23694431]
[1745006191853,0.01184679,84411.0,84407.0,0.23694597]
[1745006192335,0.24878165,84412.0,84407.0,0.23694597]
[1745006194380,0.01184665,84412.0,84408.0,0.23694378]
[1745006195024,0.24878141,84413.0,84408.0,0.23694378]
[1745006195961,0.24878141,84413.0,84409.0,0.23694093]
[1745006197297,0.01184651,84413.0,84409.0,0.23694093]
[1745006197439,0.24877461,84414.0,84409.0,0.23694093]
[1745006197647,0.36822252,84414.0,84409.0,0.23694093]
[1745006198692,0.36822252,84414.0,84410.0,0.23693836]
[1745006199258,0.11944791,84414.0,84410.0,0.23693836]
[1745006199474,0.11944791,84414.0,84413.0,0.23693033]
[1745006199694,0.11944791,84414.0,84410.0,0.23693875]
[1745006199695,0.0481,84431.0,84427.0,0.23688883]
[1745006199924,0.13129232,84428.0,84424.0,0.23689704]
[1745006200124,0.11944791,84428.0,84425.0,0.23689543]
[1745006200330,0.11944791,84428.0,84424.0,0.23689704]
[1745006200888,0.11944791,84428.0,84424.0,0.23689921]
[1745006201020,0.11949598,84428.0,84424.0,0.23689921]
[1745006207767,0.11949598,84428.0,84425.0,0.23689573]
[1745006208528,0.11949598,84428.0,84425.0,0.2521735]
[1745006209094,0.11949598,84428.0,84426.0,0.2368937]
[1745006209296,0.11949598,84428.0,84425.0,0.2521735]
[1745006209694,0.11949598,84428.0,84426.0,0.23689258]
[1745006214780,0.11949598,84428.0,84427.0,0.23689104]
[1745006228837,0.11949598,84428.0,84425.0,0.01527777]
[1745006229300,0.11949598,84428.0,84425.0,0.23689489]
[1745006229598,0.11949598,84428.0,84426.0,0.23689267]
[1745006230262,0.11949598,84428.0,84425.0,0.25218581]
[1745006230454,0.11949598,84428.0,84426.0,0.23689152]
[1745006234042,0.11949598,84428.0,84426.0,0.23689198]
[1745006234243,0.11949598,84428.0,84425.0,0.25218581]
[1745006234526,0.23689104,84427.0,84425.0,0.01529092]
[1745006234732,0.11944791,84426.0,84424.0,0.02]
[1745006234932,0.11944791,84426.0,84424.0,0.03483219]
[1745006236068,0.11944791,84426.0,84420.0,0.20804634]
[1745006236267,0.11944791,84426.0,84420.0,0.2369089]
[1745006237008,0.11944791,84426.0,84421.0,0.23690576]
[1745006237748,0.11944791,84426.0,84420.0,0.26301574]
[1745006238085,0.11944791,84426.0,84421.0,0.23690605]
[1745006239516,0.11944791,84426.0,84422.0,0.34]
[1745006241698,0.11944791,84426.0,84423.0,0.34]
[1745006245244,0.11944791,84426.0,84421.0,0.58875069]
[1745006246407,0.11944791,84426.0,84423.0,0.34]
[1745006254557,0.11944791,84426.0,84423.0,0.35184511]
[1745006254984,0.11944791,84426.0,84423.0,0.58874468]
[1745006255542,0.11944791,84426.0,84423.0,0.57689957]
[1745006257528,0.11944791,84426.0,84423.0,0.58874468]
[1745006259766,0.11944791,84426.0,84423.0,0.57689957]
[1745006259937,0.23690435,84423.0,84421.0,0.34]
[1745006260140,0.01184483,84425.0,84421.0,0.34]
[1745006260141,0.11944791,84422.0,84421.0,0.34]
[1745006288316,0.01184553,84420.0,84415.0,0.23692358]
[1745006288661,0.11944791,84419.0,84418.0,0.23691432]
[1745006289164,0.11944791,84419.0,84417.0,0.24876256]
[1745006290110,0.11944791,84419.0,84416.0,0.24876612]
[1745006292657,0.13129358,84419.0,84416.0,0.01184609]
[1745006293018,0.13129358,84419.0,84416.0,0.2487663]
[1745006293219,0.13129358,84419.0,84416.0,0.01184609]
[1745006293954,0.13129358,84419.0,84416.0,0.24876614]
[1745006294318,0.13129358,84419.0,84415.0,0.02596509]
[1745006294549,0.2487621,84418.0,84415.0,0.02596509]
[1745006294753,0.11944791,84417.0,84415.0,0.02596509]
[1745006295359,0.11944791,84417.0,84415.0,0.36596509]
[1745006296852,0.11944791,84417.0,84415.0,0.02596509]
[1745006299478,0.11944791,84417.0,84415.0,0.26288851]
[1745006300479,0.11944791,84417.0,84415.0,0.02596509]
[1745006304606,0.11944791,84417.0,84415.0,0.26288829]
[1745006307859,0.11944791,84417.0,84415.0,0.02596509]
[1745006326457,0.11944791,84417.0,84415.0,0.26288874]
[1745006327226,0.11944791,84417.0,84415.0,0.02596509]
[1745006341044,0.11944791,84417.0,84409.0,0.23693969]
[1745006341045,0.23694997,84406.0,84404.0,0.02]
[1745006341267,0.11944791,84405.0,84404.0,0.03382304]
[1745006342470,0.13129554,84405.0,84402.0,0.01184806]
[1745006342677,0.24880548,84404.0,84401.0,0.0118482]
[1745006343772,0.22880548,84404.0,84401.0,0.0118482]
[1745006344378,0.11944791,84405.0,84402.0,0.01184806]
[1745006344576,0.11944791,84405.0,84402.0,0.24880737]
[1745006344776,0.13129554,84405.0,84402.0,0.01184806]
[1745006345161,0.36825039,84405.0,84401.0,0.24881076]
[1745006345563,0.13129554,84405.0,84401.0,0.24881076]
[1745006345786,0.36824978,84405.0,84401.0,0.24881076]
[1745006345985,0.13129554,84405.0,84401.0,0.24881076]
[1745006348816,0.36825001,84405.0,84402.0,0.34]
[1745006349897,0.13129554,84405.0,84402.0,0.34]
[1745006350542,0.13129554,84405.0,84402.0,0.35184806]
[1745006351547,0.11944791,84405.0,84402.0,0.58880802]
[1745006351707,0.11944791,84405.0,84404.0,0.34]
[1745006361478,0.24877897,84413.0,84408.0,0.24879021]
[1745006361703,0.11944791,84412.0,84408.0,0.24879021]
[1745006361854,0.13129456,84412.0,84409.0,0.01184707]
[1745006362244,0.36822897,84412.0,84409.0,0.01184707]
[1745006362979,0.36822897,84412.0,84408.0,0.24879021]
[1745006363647,0.24878403,84411.0,84408.0,0.01184721]
[1745006363840,0.01184679,84411.0,84408.0,0.01184721]
[1745006364471,0.24878397,84411.0,84408.0,0.01184721]
[1745006364632,0.01184637,84414.0,84409.0,0.24878658]
[1745006364833,0.11944791,84414.0,84412.0,0.23693313]
[1745006365163,0.11944791,84414.0,84412.0,0.28673313]
[1745006365364,0.11944791,84414.0,84412.0,0.29857978]
[1745006366661,0.23690919,84421.0,84412.0,0.29857978]
[1745006366662,0.24875164,84422.0,84417.0,0.24876303]
[1745006366845,0.36820277,84421.0,84417.0,0.24876303]
[1745006367256,0.36820277,84421.0,84417.0,0.01184595]
[1745006369255,0.01184553,84420.0,84417.0,0.01184595]
[1745006369419,0.13129344,84420.0,84417.0,0.01184595]
[1745006369839,0.01184567,84419.0,84415.0,0.24876884]
[1745006371082,0.24876052,84419.0,84415.0,0.24876884]
[1745006374916,0.01268582,84435.0,84425.0,0.2487392]
[1745006375042,0.11949598,84428.0,84425.0,0.2487392]
[1745006375241,0.11949598,84428.0,84425.0,0.01184483]
[1745006376076,0.11949598,84428.0,84425.0,0.24873983]
[1745006376805,0.11949598,84428.0,84426.0,0.0073938]
[1745006377233,0.11949598,84428.0,84427.0,0.0073938]
[1745006378528,0.11949598,84428.0,84427.0,0.02108251]
[1745006380446,4.807e-05,84428.0,84427.0,0.02108251]
[1745006380647,4.807e-05,84428.0,84427.0,0.06638251]
[1745006382323,4.807e-05,84428.0,84427.0,0.40638251]
[1745006383377,4.807e-05,84428.0,84427.0,0.45308251]
[1745006385195,4.807e-05,84428.0,84427.0,0.44568871]
[1745006386404,4.807e-05,84428.0,84427.0,0.57967747]
[1745006386882,4.807e-05,84428.0,84427.0,0.58706937]
[1745006388195,4.807e-05,84428.0,84427.0,3.68455237]
[1745006388423,4.807e-05,84428.0,84427.0,2.53980247]
[1745006388597,4.807e-05,84428.0,84427.0,2.42726847]
[1745006389793,4.807e-05,84428.0,84427.0,1.96629947]
[1745006390345,4.807e-05,84428.0,84427.0,1.80054247]
[1745006390576,4.807e-05,84428.0,84427.0,1.67911247]
[1745006391042,4.807e-05,84428.0,84427.0,1.61429947]
[1745006391276,4.807e-05,84428.0,84427.0,1.14259147]
[1745006392664,4.807e-05,84428.0,84427.0,1.04404547]
[1745006399012,4.807e-05,84428.0,84427.0,0.58067747]
[1745006399376,4.807e-05,84428.0,84427.0,0.80771147]
[1745006399571,4.807e-05,84428.0,84427.0,0.79703147]
[1745006400602,4.807e-05,84428.0,84427.0,0.73095647]
[1745006401280,0.0008424,84435.0,84434.0,0.5768714]
[1745006402498,0.0008424,84435.0,84434.0,0.6251714]
[1745006403067,0.96866844,84441.0,84440.0,0.57685457]
[1745006403273,1e-08,84441.0,84440.0,3.12035733]
[1745006403493,0.01183936,84464.0,84461.0,0.57679568]
[1745006403706,0.01183852,84470.0,84461.0,0.57679568]